fUSD/lending_fUSD_20260512
["ID","MTS","AMOUNT","RATE_DAILY","PERIOD"]
[422106781,1778577072000,-598.30367606,0.00041278,30]
[422106767,1778577072000,-151.0,0.0004127,30]
[422106769,1778577072000,-5932.0,0.00041271,30]
[422106776,1778577072000,-151.0,0.00041275,30]
[422106777,1778577072000,-151.0,0.00041275,30]
[422106787,1778577072000,-151.0,0.00041279,120]
[422106779,1778577072000,-5259.42,0.00041278,2]
[422106778,1778577072000,-1148.7866003,0.00041276,120]
[422106788,1778577072000,-500.0,0.00041279,120]
[422106780,1778577072000,-495.13694843,0.00041278,120]
[422106770,1778577072000,-27818.31600882,0.00041273,30]
[422106782,1778577072000,-598.30367606,0.00041278,30]
[422106853,1778577073000,-7595.56,0.00041361,7]
[422106850,1778577073000,-7595.56,0.00041361,7]
[422106846,1778577073000,-4749.32643645,0.00041361,30]
[422106847,1778577073000,-7595.56,0.00041361,7]
[422106841,1778577073000,-50000.0,0.0004136,69]
[422106848,1778577073000,-7595.56,0.00041361,7]
[422106844,1778577073000,-2332693.0221182,0.00041361,30]
[422106843,1778577073000,-50000.0,0.0004136,71]
[422106852,1778577073000,-7595.56,0.00041361,7]
[422106849,1778577073000,-7595.56,0.00041361,7]
[422106845,1778577073000,-10464.0,0.00041361,30]
[422106857,1778577073000,-7595.56,0.00041361,7]
[422106854,1778577073000,-7595.56,0.00041361,7]
[422106861,1778577073000,-7595.56,0.00041361,7]
[422106858,1778577073000,-7595.56,0.00041361,7]
[422106860,1778577073000,-7595.56,0.00041361,7]
[422106851,1778577073000,-7595.56,0.00041361,7]
[422106856,1778577073000,-7595.56,0.00041361,7]
[422106859,1778577073000,-7595.56,0.00041361,7]
[422106863,1778577073000,-7595.56,0.00041361,7]
[422106864,1778577073000,-7595.56,0.00041361,7]
[422106862,1778577073000,-7595.56,0.00041361,7]
[422106866,1778577073000,-7595.56,0.00041361,7]
[422106865,1778577073000,-7595.56,0.00041361,7]
[422106855,1778577073000,-7595.56,0.00041361,7]
[422106840,1778577073000,-50000.0,0.0004136,68]
[422106814,1778577073000,-837.38,0.00041302,120]
[422106838,1778577073000,-50000.0,0.0004136,66]
[422106868,1778577073000,-7595.56,0.00041361,7]
[422106816,1778577073000,-302.37657633,0.00041315,120]
[422106826,1778577073000,-179.17595526,0.00041315,120]
[422106817,1778577073000,-211.84856995,0.00041315,120]
[422106818,1778577073000,-169.44578509,0.00041315,120]
[422106815,1778577073000,-232.413135,0.00041314,59]
[422106823,1778577073000,-240.77,0.00041315,2]
[422106821,1778577073000,-304.65033544,0.00041315,120]
[422106819,1778577073000,-3233.05725687,0.00041315,120]
[422106820,1778577073000,-210.0625897,0.00041315,120]
[422106825,1778577073000,-150.0,0.00041315,6]
[422106822,1778577073000,-435.86454272,0.00041315,120]
[422106824,1778577073000,-510.59024216,0.00041315,120]
[422106828,1778577073000,-500.0,0.00041315,120]
[422106827,1778577073000,-1143.77184913,0.00041315,30]
[422106834,1778577073000,-50000.0,0.0004136,62]
[422106831,1778577073000,-1148.7866003,0.00041323,120]
[422106829,1778577073000,-500.0,0.00041315,120]
[422106832,1778577073000,-50000.0,0.0004136,60]
[422106835,1778577073000,-50000.0,0.0004136,63]
[422106836,1778577073000,-50000.0,0.0004136,64]
[422106833,1778577073000,-50000.0,0.0004136,61]
[422106837,1778577073000,-50000.0,0.0004136,65]
[422106830,1778577073000,-197.40097843,0.00041315,120]
[422106839,1778577073000,-50000.0,0.0004136,67]
[422106842,1778577073000,-50000.0,0.0004136,70]
[422106870,1778577073000,-7595.66,0.00041361,7]
[422106908,1778577073000,-400.0,0.00041361,30]
[422106869,1778577073000,-7595.56,0.00041361,7]
[422106898,1778577073000,-400.0,0.00041361,30]
[422106897,1778577073000,-400.0,0.00041361,30]
[422106899,1778577073000,-400.0,0.00041361,30]
[422106903,1778577073000,-400.0,0.00041361,30]
[422106902,1778577073000,-400.0,0.00041361,30]
[422106905,1778577073000,-400.0,0.00041361,30]
[422106906,1778577073000,-400.0,0.00041361,30]
[422106917,1778577073000,-7321.32545582,0.00041361,5]
[422106911,1778577073000,-400.0,0.00041361,30]
[422106909,1778577073000,-400.0,0.00041361,30]
[422106916,1778577073000,-400.0,0.00041361,30]
[422106907,1778577073000,-400.0,0.00041361,30]
[422106915,1778577073000,-400.0,0.00041361,30]
[422106914,1778577073000,-400.0,0.00041361,30]
[422106913,1778577073000,-400.0,0.00041361,30]
[422106912,1778577073000,-400.0,0.00041361,30]
[422106919,1778577073000,-637.79919364,0.00041361,60]
[422106918,1778577073000,-178.57845465,0.00041361,30]
[422106921,1778577073000,-195.70814546,0.00041361,31]
[422106923,1778577073000,-3795.843985,0.00041361,60]
[422106924,1778577073000,-858.45779047,0.00041361,31]
[422106920,1778577073000,-231.98284409,0.00041361,11]
[422106925,1778577073000,-160.56612373,0.00041361,90]
[422106922,1778577073000,-248.70977804,0.00041361,60]
[422106871,1778577073000,-904.14281475,0.00041361,30]
[422106900,1778577073000,-400.0,0.00041361,30]
[422106904,1778577073000,-466.9291095,0.00041361,30]
[422106910,1778577073000,-400.0,0.00041361,30]
[422106895,1778577073000,-3849.16,0.00041361,30]
[422106867,1778577073000,-7595.56,0.00041361,7]
[422106901,1778577073000,-400.0,0.00041361,30]
[422106873,1778577073000,-5994.12715383,0.00041361,30]
[422106872,1778577073000,-59647.61672309,0.00041361,60]
[422106883,1778577073000,-5096.10825169,0.00041361,30]
[422106876,1778577073000,-1105432.78949692,0.00041361,30]
[422106875,1778577073000,-19851.15054817,0.00041361,5]
[422106882,1778577073000,-9038.19751648,0.00041361,30]
[422106878,1778577073000,-3903.33476014,0.00041361,30]
[422106877,1778577073000,-253025.35516027,0.00041361,30]
[422106879,1778577073000,-1010839.47551693,0.00041361,30]
[422106881,1778577073000,-7245.90957383,0.00041361,30]
[422106880,1778577073000,-205957.18209604,0.00041361,30]
[422106874,1778577073000,-35992.90939879,0.00041361,30]
[422106884,1778577073000,-318.44337248,0.00041361,2]
[422106896,1778577073000,-100000.0,0.00041361,30]
[422106893,1778577073000,-500.0,0.00041361,3]
[422106885,1778577073000,-5000.0,0.00041361,30]
[422106892,1778577073000,-500.0,0.00041361,3]
[422106891,1778577073000,-500.0,0.00041361,3]
[422106894,1778577073000,-600.90277304,0.00041361,3]
[422106887,1778577073000,-133816.83244726,0.00041361,30]
[422106888,1778577073000,-266.05462152,0.00041361,30]
[422106889,1778577073000,-500.0,0.00041361,3]
[422106886,1778577073000,-5000.0,0.00041361,7]
[422106890,1778577073000,-500.0,0.00041361,3]
[422106968,1778577074000,-535.43335617,0.00041361,60]
[422106973,1778577074000,-3000.0,0.00041361,30]
[422106967,1778577074000,-500.0,0.00041361,60]
[422106971,1778577074000,-50000.0,0.00041361,52]
[422106965,1778577074000,-500.0,0.00041361,30]
[422106954,1778577074000,-1616.87,0.00041361,11]
[422106957,1778577074000,-1617.07393571,0.00041361,11]
[422106953,1778577074000,-1616.87,0.00041361,11]
[422106964,1778577074000,-609.38931706,0.00041361,30]
[422106956,1778577074000,-1616.87,0.00041361,11]
[422106976,1778577074000,-5000.0,0.00041361,60]
[422106955,1778577074000,-1616.87,0.00041361,11]
[422106970,1778577074000,-197.18284209,0.00041361,30]
[422106984,1778577074000,-154.45,0.00041361,30]
[422106972,1778577074000,-50000.0,0.00041361,55]
[422106966,1778577074000,-552.4038925,0.00041361,30]
[422106977,1778577074000,-5000.0,0.00041361,90]
[422106969,1778577074000,-513.46381764,0.00041361,45]
[422106975,1778577074000,-5000.0,0.00041361,60]
[422106979,1778577074000,-50000.0,0.00041361,57]
[422106978,1778577074000,-50000.0,0.00041361,56]
[422106989,1778577074000,-50000.0,0.00041361,60]
[422106990,1778577074000,-50000.0,0.00041361,52]
[422106980,1778577074000,-154.45,0.00041361,30]
[422106982,1778577074000,-154.45,0.00041361,30]
[422106985,1778577074000,-154.45,0.00041361,30]
[422106961,1778577074000,-626.88227902,0.00041361,14]
[422106974,1778577074000,-6703.33875083,0.00041361,30]
[422106963,1778577074000,-500.0,0.00041361,60]
[422106929,1778577074000,-5000.0,0.00041361,60]
[422106960,1778577074000,-248.81056748,0.00041361,11]
[422106926,1778577074000,-178.11152718,0.00041361,7]
[422106927,1778577074000,-167.03434393,0.00041361,90]
[422106939,1778577074000,-1616.87,0.00041361,11]
[422106928,1778577074000,-5000.0,0.00041361,60]
[422106932,1778577074000,-4069.36,0.00041361,60]
[422106931,1778577074000,-5000.0,0.00041361,60]
[422106934,1778577074000,-1616.87,0.00041361,11]
[422106933,1778577074000,-713.59,0.00041361,60]
[422106936,1778577074000,-1616.87,0.00041361,11]
[422106930,1778577074000,-5000.0,0.00041361,60]
[422106935,1778577074000,-1616.87,0.00041361,11]
[422106937,1778577074000,-1616.87,0.00041361,11]
[422106938,1778577074000,-1616.87,0.00041361,11]
[422106962,1778577074000,-500.0,0.00041361,60]
[422106940,1778577074000,-1616.87,0.00041361,11]
[422106943,1778577074000,-1616.87,0.00041361,11]
[422106944,1778577074000,-1616.87,0.00041361,11]
[422106947,1778577074000,-1616.87,0.00041361,11]
[422106948,1778577074000,-1616.87,0.00041361,11]
[422106949,1778577074000,-1616.87,0.00041361,11]
[422106952,1778577074000,-1616.87,0.00041361,11]
[422106945,1778577074000,-1616.87,0.00041361,11]
[422106950,1778577074000,-1616.87,0.00041361,11]
[422106946,1778577074000,-1616.87,0.00041361,11]
[422106951,1778577074000,-1616.87,0.00041361,11]
[422106941,1778577074000,-1616.87,0.00041361,11]
[422106959,1778577074000,-2691.8302309,0.00041361,60]
[422106958,1778577074000,-177022.20514282,0.00041361,5]
[422106942,1778577074000,-1616.87,0.00041361,11]
[422106988,1778577074000,-50000.0,0.00041361,59]
[422106983,1778577074000,-154.45,0.00041361,30]
[422106981,1778577074000,-154.45,0.00041361,30]
[422107017,1778577074000,-500.0,0.00041361,60]
[422107019,1778577074000,-455.9407589,0.00041361,60]
[422107020,1778577074000,-500.0,0.00041361,31]
[422107024,1778577074000,-500.0,0.00041361,31]
[422107023,1778577074000,-500.0,0.00041361,31]
[422107028,1778577074000,-500.0,0.00041361,31]
[422107038,1778577074000,-500.0,0.00041361,60]
[422107039,1778577074000,-500.0,0.00041361,15]
[422107040,1778577074000,-500.0,0.00041361,15]
[422107027,1778577074000,-500.0,0.00041361,31]
[422107036,1778577074000,-510.15635921,0.00041361,30]
[422107034,1778577074000,-500.0,0.00041361,60]
[422107029,1778577074000,-500.0,0.00041361,31]
[422107021,1778577074000,-500.0,0.00041361,31]
[422107030,1778577074000,-500.0,0.00041361,31]
[422107033,1778577074000,-436.63,0.00041361,31]
[422107031,1778577074000,-500.0,0.00041361,31]
[422107035,1778577074000,-500.0,0.00041361,30]
[422107032,1778577074000,-500.0,0.00041361,31]
[422107042,1778577074000,-500.0,0.00041361,15]
[422107041,1778577074000,-500.0,0.00041361,15]
[422107044,1778577074000,-500.0,0.00041361,15]
[422107046,1778577074000,-500.0,0.00041361,15]
[422107049,1778577074000,-595.99,0.00041361,15]
[422107048,1778577074000,-500.0,0.00041361,15]
[422107043,1778577074000,-500.0,0.00041361,15]
[422106987,1778577074000,-50000.0,0.00041361,58]
[422107047,1778577074000,-500.0,0.00041361,15]
[422107037,1778577074000,-500.0,0.00041361,14]
[422107025,1778577074000,-500.0,0.00041361,31]
[422107045,1778577074000,-500.0,0.00041361,15]
[422107026,1778577074000,-436.63,0.00041361,31]
[422107022,1778577074000,-500.0,0.00041361,31]
[422106991,1778577074000,-50000.0,0.00041361,51]
[422106992,1778577074000,-50000.0,0.00041361,50]
[422106994,1778577074000,-50000.0,0.00041361,47]
[422106993,1778577074000,-50000.0,0.00041361,49]
[422107002,1778577074000,-5100.0,0.00041361,39]
[422106995,1778577074000,-1723.92710334,0.00041361,7]
[422106997,1778577074000,-500.0,0.00041361,75]
[422107000,1778577074000,-2729.45879519,0.00041361,14]
[422106999,1778577074000,-341.77511092,0.00041361,75]
[422106996,1778577074000,-20864.0,0.00041361,2]
[422106998,1778577074000,-500.0,0.00041361,75]
[422107001,1778577074000,-488921.71823123,0.00041361,30]
[422107004,1778577074000,-217321.57708816,0.00041361,2]
[422106986,1778577074000,-154.5,0.00041361,30]
[422107013,1778577074000,-500.0,0.00041361,31]
[422107003,1778577074000,-5100.0,0.00041361,37]
[422107015,1778577074000,-436.63,0.00041361,31]
[422107018,1778577074000,-500.0,0.00041361,60]
[422107007,1778577074000,-500.0,0.00041361,15]
[422107008,1778577074000,-353.34898112,0.00041361,15]
[422107010,1778577074000,-500.0,0.00041361,31]
[422107016,1778577074000,-500.0,0.00041361,14]
[422107005,1778577074000,-86785.88065975,0.00041361,49]
[422107006,1778577074000,-500.0,0.00041361,15]
[422107012,1778577074000,-500.0,0.00041361,31]
[422107011,1778577074000,-500.0,0.00041361,31]
[422107014,1778577074000,-500.0,0.00041361,31]
[422107009,1778577074000,-500.0,0.00041361,31]
[422107090,1778577075000,-1208.26,0.00041361,7]
[422107093,1778577075000,-1208.26,0.00041361,7]
[422107088,1778577075000,-1208.26,0.00041361,7]
[422107087,1778577075000,-1208.26,0.00041361,7]
[422107081,1778577075000,-1208.26,0.00041361,7]
[422107085,1778577075000,-1208.26,0.00041361,7]
[422107083,1778577075000,-1208.26,0.00041361,7]
[422107086,1778577075000,-1208.26,0.00041361,7]
[422107079,1778577075000,-500.0,0.00041361,31]
[422107092,1778577075000,-1208.26,0.00041361,7]
[422107084,1778577075000,-1208.26,0.00041361,7]
[422107080,1778577075000,-436.63,0.00041361,31]
[422107094,1778577075000,-1208.26,0.00041361,7]
[422107099,1778577075000,-1208.26,0.00041361,7]
[422107091,1778577075000,-177.00383148,0.00041361,30]
[422107095,1778577075000,-1208.26,0.00041361,7]
[422107097,1778577075000,-1208.26,0.00041361,7]
[422107096,1778577075000,-1208.26,0.00041361,7]
[422107098,1778577075000,-1208.26,0.00041361,7]
[422107101,1778577075000,-1208.26,0.00041361,7]
[422107103,1778577075000,-1208.26,0.00041361,7]
[422107105,1778577075000,-1208.493012,0.00041361,7]
[422107104,1778577075000,-1208.26,0.00041361,7]
[422107107,1778577075000,-500.0,0.00041361,14]
[422107100,1778577075000,-1208.26,0.00041361,7]
[422107082,1778577075000,-1208.26,0.00041361,7]
[422107089,1778577075000,-1208.26,0.00041361,7]
[422107077,1778577075000,-500.0,0.00041361,31]
[422107061,1778577075000,-500.0,0.00041361,31]
[422107074,1778577075000,-500.0,0.00041361,31]
[422107050,1778577075000,-500.0,0.00041361,31]
[422107051,1778577075000,-500.0,0.00041361,31]
[422107052,1778577075000,-500.0,0.00041361,31]
[422107053,1778577075000,-500.0,0.00041361,31]
[422107055,1778577075000,-500.0,0.00041361,31]
[422107065,1778577075000,-500.0,0.00041361,60]
[422107057,1778577075000,-500.0,0.00041361,31]
[422107054,1778577075000,-500.0,0.00041361,31]
[422107056,1778577075000,-500.0,0.00041361,31]
[422107058,1778577075000,-500.0,0.00041361,31]
[422107064,1778577075000,-500.0,0.00041361,60]
[422107062,1778577075000,-500.0,0.00041361,31]
[422107078,1778577075000,-500.0,0.00041361,31]
[422107063,1778577075000,-373.26,0.00041361,31]
[422107060,1778577075000,-500.0,0.00041361,31]
[422107111,1778577075000,-500.0,0.00041361,120]
[422107066,1778577075000,-500.0,0.00041361,60]
[422107067,1778577075000,-500.0,0.00041361,60]
[422107071,1778577075000,-500.0,0.00041361,30]
[422107070,1778577075000,-344.33,0.00041361,60]
[422107068,1778577075000,-500.0,0.00041361,60]
[422107069,1778577075000,-500.0,0.00041361,60]
[422107075,1778577075000,-500.0,0.00041361,31]
[422107073,1778577075000,-228.95103361,0.00041361,11]
[422107072,1778577075000,-500.0,0.00041361,30]
[422107076,1778577075000,-500.0,0.00041361,31]
[422107059,1778577075000,-500.0,0.00041361,31]
[422107102,1778577075000,-1208.26,0.00041361,7]
[422107149,1778577075000,-500.0,0.00041361,120]
[422107108,1778577075000,-282.925603,0.00041361,120]
[422107137,1778577075000,-500.0,0.00041361,7]
[422107139,1778577075000,-500.0,0.00041361,7]
[422107140,1778577075000,-500.0,0.00041361,120]
[422107142,1778577075000,-500.0,0.00041361,120]
[422107145,1778577075000,-500.0,0.00041361,120]
[422107143,1778577075000,-209.65,0.00041361,120]
[422107141,1778577075000,-326.33,0.00041361,120]
[422107144,1778577075000,-500.0,0.00041361,120]
[422107148,1778577075000,-500.0,0.00041361,120]
[422107160,1778577075000,-177.38,0.00041361,120]
[422107152,1778577075000,-500.0,0.00041361,120]
[422107159,1778577075000,-500.0,0.00041361,120]
[422107138,1778577075000,-500.0,0.00041361,7]
[422107154,1778577075000,-500.0,0.00041361,120]
[422107157,1778577075000,-500.0,0.00041361,120]
[422107151,1778577075000,-607.9,0.00041361,120]
[422107153,1778577075000,-506.0,0.00041361,120]
[422107156,1778577075000,-500.0,0.00041361,120]
[422107155,1778577075000,-565.14,0.00041361,120]
[422107158,1778577075000,-500.0,0.00041361,120]
[422107162,1778577075000,-500.0,0.00041361,120]
[422107161,1778577075000,-500.0,0.00041361,120]
[422107163,1778577075000,-500.0,0.00041361,120]
[422107164,1778577075000,-500.0,0.00041361,120]
[422107166,1778577075000,-500.0,0.00041361,120]
[422107106,1778577075000,-500.0,0.00041361,14]
[422107150,1778577075000,-500.0,0.00041361,120]
[422107147,1778577075000,-500.0,0.00041361,120]
[422107165,1778577075000,-500.0,0.00041361,120]
[422107146,1778577075000,-500.0,0.00041361,120]
[422107135,1778577075000,-500.0,0.00041361,7]
[422107110,1778577075000,-500.0,0.00041361,120]
[422107112,1778577075000,-602.69,0.00041361,120]
[422107115,1778577075000,-500.0,0.00041361,120]
[422107117,1778577075000,-500.0,0.00041361,120]
[422107114,1778577075000,-500.0,0.00041361,120]
[422107116,1778577075000,-500.0,0.00041361,120]
[422107113,1778577075000,-500.0,0.00041361,120]
[422107118,1778577075000,-611.80762884,0.00041361,120]
[422107119,1778577075000,-500.0,0.00041361,120]
[422107121,1778577075000,-500.0,0.00041361,7]
[422107120,1778577075000,-500.0,0.00041361,7]
[422107122,1778577075000,-500.0,0.00041361,7]
[422107109,1778577075000,-500.0,0.00041361,120]
[422107125,1778577075000,-500.0,0.00041361,7]
[422107123,1778577075000,-500.0,0.00041361,7]
[422107132,1778577075000,-500.0,0.00041361,7]
[422107131,1778577075000,-500.0,0.00041361,7]
[422107127,1778577075000,-500.0,0.00041361,7]
[422107128,1778577075000,-500.0,0.00041361,7]
[422107136,1778577075000,-500.0,0.00041361,7]
[422107129,1778577075000,-500.0,0.00041361,7]
[422107124,1778577075000,-500.0,0.00041361,7]
[422107134,1778577075000,-500.0,0.00041361,7]
[422107133,1778577075000,-500.0,0.00041361,7]
[422107126,1778577075000,-500.0,0.00041361,7]
[422107130,1778577075000,-500.0,0.00041361,7]
[422107203,1778577076000,-500.0,0.00041361,120]
[422107202,1778577076000,-500.0,0.00041361,120]
[422107201,1778577076000,-500.0,0.00041361,120]
[422107199,1778577076000,-500.0,0.00041361,120]
[422107208,1778577076000,-500.0,0.00041361,120]
[422107197,1778577076000,-372.26,0.00041361,120]
[422107198,1778577076000,-500.0,0.00041361,120]
[422107206,1778577076000,-500.0,0.00041361,120]
[422107194,1778577076000,-500.0,0.00041361,120]
[422107200,1778577076000,-600.16,0.00041361,120]
[422107195,1778577076000,-531.96,0.00041361,120]
[422107220,1778577076000,-616.59,0.00041361,120]
[422107205,1778577076000,-627.8,0.00041361,120]
[422107207,1778577076000,-500.0,0.00041361,15]
[422107218,1778577076000,-500.0,0.00041361,120]
[422107214,1778577076000,-500.0,0.00041361,120]
[422107212,1778577076000,-500.0,0.00041361,120]
[422107211,1778577076000,-365.33,0.00041361,15]
[422107209,1778577076000,-500.0,0.00041361,15]
[422107216,1778577076000,-500.0,0.00041361,120]
[422107217,1778577076000,-500.0,0.00041361,120]
[422107219,1778577076000,-500.0,0.00041361,120]
[422107196,1778577076000,-500.0,0.00041361,120]
[422107210,1778577076000,-500.0,0.00041361,15]
[422107204,1778577076000,-500.0,0.00041361,120]
[422107190,1778577076000,-500.0,0.00041361,120]
[422107183,1778577076000,-500.0,0.00041361,120]
[422107185,1778577076000,-500.0,0.00041361,120]
[422107213,1778577076000,-500.0,0.00041361,120]
[422107168,1778577076000,-500.0,0.00041361,120]
[422107167,1778577076000,-500.0,0.00041361,120]
[422107169,1778577076000,-500.0,0.00041361,120]
[422107170,1778577076000,-500.0,0.00041361,120]
[422107172,1778577076000,-301.56811949,0.00041361,30]
[422107180,1778577076000,-500.0,0.00041361,120]
[422107171,1778577076000,-485.3849614,0.00041361,120]
[422107173,1778577076000,-500.0,0.00041361,120]
[422107182,1778577076000,-331.76,0.00041361,120]
[422107176,1778577076000,-500.0,0.00041361,120]
[422107191,1778577076000,-500.0,0.00041361,120]
[422107181,1778577076000,-500.0,0.00041361,120]
[422107174,1778577076000,-500.0,0.00041361,120]
[422107177,1778577076000,-311.08,0.00041361,120]
[422107178,1778577076000,-500.0,0.00041361,120]
[422107179,1778577076000,-500.0,0.00041361,120]
[422107184,1778577076000,-500.0,0.00041361,120]
[422107186,1778577076000,-500.0,0.00041361,120]
[422107188,1778577076000,-486.44818898,0.00041361,120]
[422107189,1778577076000,-500.0,0.00041361,120]
[422107187,1778577076000,-508.44,0.00041361,120]
[422107193,1778577076000,-500.0,0.00041361,120]
[422107192,1778577076000,-500.0,0.00041361,120]
[422107175,1778577076000,-500.0,0.00041361,120]
[422107215,1778577076000,-340.22,0.00041361,120]
[422107221,1778577076000,-500.0,0.00041361,120]
[422107232,1778577076000,-189.09,0.00041361,120]
[422107255,1778577076000,-500.0,0.00041361,120]
[422107250,1778577076000,-500.0,0.00041361,120]
[422107254,1778577076000,-311.24808943,0.00041361,120]
[422107249,1778577076000,-500.0,0.00041361,120]
[422107251,1778577076000,-500.0,0.00041361,120]
[422107252,1778577076000,-500.0,0.00041361,120]
[422107258,1778577076000,-503.41,0.00041361,120]
[422107260,1778577076000,-500.0,0.00041361,120]
[422107263,1778577076000,-500.0,0.00041361,120]
[422107267,1778577076000,-500.0,0.00041361,120]
[422107262,1778577076000,-500.0,0.00041361,120]
[422107266,1778577076000,-500.0,0.00041361,120]
[422107259,1778577076000,-568.42,0.00041361,120]
[422107264,1778577076000,-225.71,0.00041361,120]
[422107261,1778577076000,-500.0,0.00041361,120]
[422107265,1778577076000,-541.23,0.00041361,120]
[422107268,1778577076000,-500.0,0.00041361,120]
[422107270,1778577076000,-500.0,0.00041361,120]
[422107269,1778577076000,-500.0,0.00041361,120]
[422107272,1778577076000,-500.0,0.00041361,120]
[422107271,1778577076000,-520.49,0.00041361,120]
[422107274,1778577076000,-500.0,0.00041361,120]
[422107273,1778577076000,-500.0,0.00041361,120]
[422107222,1778577076000,-500.0,0.00041361,120]
[422107275,1778577076000,-500.0,0.00041361,120]
[422107248,1778577076000,-500.0,0.00041361,120]
[422107253,1778577076000,-471.02,0.00041361,120]
[422107276,1778577076000,-500.0,0.00041361,120]
[422107257,1778577076000,-500.0,0.00041361,120]
[422107247,1778577076000,-500.0,0.00041361,120]
[422107224,1778577076000,-500.0,0.00041361,120]
[422107223,1778577076000,-500.0,0.00041361,120]
[422107228,1778577076000,-500.0,0.00041361,120]
[422107230,1778577076000,-338.66,0.00041361,120]
[422107229,1778577076000,-500.0,0.00041361,120]
[422107225,1778577076000,-370.33,0.00041361,120]
[422107227,1778577076000,-500.0,0.00041361,120]
[422107231,1778577076000,-500.0,0.00041361,120]
[422107234,1778577076000,-500.0,0.00041361,120]
[422107233,1778577076000,-500.0,0.00041361,120]
[422107236,1778577076000,-500.0,0.00041361,120]
[422107226,1778577076000,-500.0,0.00041361,120]
[422107235,1778577076000,-500.0,0.00041361,120]
[422107237,1778577076000,-541.43,0.00041361,120]
[422107238,1778577076000,-500.0,0.00041361,120]
[422107239,1778577076000,-500.0,0.00041361,120]
[422107245,1778577076000,-500.0,0.00041361,120]
[422107241,1778577076000,-500.0,0.00041361,120]
[422107243,1778577076000,-500.0,0.00041361,120]
[422107240,1778577076000,-346.38,0.00041361,120]
[422107242,1778577076000,-500.0,0.00041361,120]
[422107256,1778577076000,-500.0,0.00041361,120]
[422107246,1778577076000,-157.28934276,0.00041361,120]
[422107244,1778577076000,-325.89322984,0.00041361,120]
[422107321,1778577077000,-500.0,0.00041361,120]
[422107313,1778577077000,-500.0,0.00041361,120]
[422107312,1778577077000,-527.29,0.00041361,120]
[422107300,1778577077000,-500.0,0.00041361,120]
[422107303,1778577077000,-500.0,0.00041361,120]
[422107305,1778577077000,-500.0,0.00041361,120]
[422107304,1778577077000,-500.0,0.00041361,120]
[422107310,1778577077000,-500.0,0.00041361,120]
[422107319,1778577077000,-500.0,0.00041361,120]
[422107309,1778577077000,-500.0,0.00041361,120]
[422107320,1778577077000,-364.44,0.00041361,120]
[422107334,1778577077000,-232.09,0.00041361,120]
[422107315,1778577077000,-500.0,0.00041361,120]
[422107322,1778577077000,-500.0,0.00041361,120]
[422107316,1778577077000,-500.0,0.00041361,120]
[422107318,1778577077000,-500.0,0.00041361,120]
[422107323,1778577077000,-342.05,0.00041361,120]
[422107317,1778577077000,-500.0,0.00041361,120]
[422107325,1778577077000,-540.3,0.00041361,120]
[422107332,1778577077000,-500.0,0.00041361,120]
[422107324,1778577077000,-500.0,0.00041361,120]
[422107326,1778577077000,-568.12,0.00041361,120]
[422107308,1778577077000,-301.31,0.00041361,120]
[422107314,1778577077000,-500.0,0.00041361,120]
[422107306,1778577077000,-500.0,0.00041361,120]